Cogmind - Beta 16 @@@ ROGUE MODE // 2025.12.21 @ 13:45:47 Player: saltine Result: Destroyed by H-88 Terminator with KE Penetrator Performance ------------- Evolutions (9) 4500 Regions Visited (25) 5000 Robots Destroyed (291) 1455 Value Destroyed (15400) 15400 Prototype IDs (52) 1040 Alien Tech Used (0) 0 Bonus (15544) 15544 TOTAL SCORE: 42939 Bonus ------- Triggered Max Security 1000 High Alert Combat Kills 3730 Follower Combat Kills 3126 Entered Garrisons 1600 Used RIF Installer 6000 Aligned with FarCom 300 Friendly Fire -212 Cogmind --------- Core Integrity 0/1600 Matter 251/300 Energy 100/100 System Corruption 0% Temperature Cool (0) Movement Core (50) Location -1/Access Parts ------- > --- POWER (2) -------- (None) > --- PROPULSION (6) --- (None) > --- UTILITY (14) ----- Experimental Core Analyzer System Shield Relay Coupler [Grunt] (43) Relay Coupler [Sentry] (35) > --- WEAPON (3) ------- (None) > --- INVENTORY (5) ---- Backup Laser III Backup Laser III Disintegrator Advanced Remote Datajack Peak State ------------ > --- POWER ------------ Reinforced Antimatter Reactor Reinforced Antimatter Reactor > --- PROPULSION ------- Armored Heavy Treads Centrium Wheel Centrium Wheel > --- UTILITY ---------- Experimental Cooling System Advanced Coolant Injector Cargo Storage Unit Gravity Neutralizer Experimental Target Analyzer Improved Transmission Jammer Hardened Medium Armor Plating Advanced Force Field Improved Hacking Suite System Shield Relay Coupler [NC] Relay Coupler [Grunt] Relay Coupler [Sentry] > --- WEAPON ----------- Heavy Mass Driver Enhanced Hardcell Cannon > --- INVENTORY -------- Improved Heavy Treads Improved Heavy Treads Matter Compressor Experimental Core Analyzer Heavy Armor Plating Hardened Heavy Armor Plating Relay Coupler [NC] Relay Coupler [Grunt] Relay Coupler [Grunt] Relay Coupler [Grunt] Relay Coupler [Grunt] Relay Coupler [Sentry] Relay Coupler [Sentry] Relay Coupler [Sentry] Relay Coupler [Demolisher] Compact HERF Cannon Hypervelocity Railgun Linear Accelerator Gamma Bomb Array Neutron Missile Launcher Neutron Missile Launcher Improved Remote Datajack Advanced Remote Datajack [Rating: 144] Favorites ----------- Power Cooled Ion Engine Engine Cooled Ion Engine Power Core Fission Core Reactor Reinforced Antimatter Reactor Propulsion Improved Treads Treads Improved Treads Wheel Centrium Wheel Hover Unit Backup Propulsion III Flight Unit Cooled Q-thruster Utility Hardened Medium Armor Plating Device Improved Heat Sink Storage High-capacity Storage Unit Processor 0b10 Alert Chip Hackware Relay Coupler [Grunt] Protection Hardened Medium Armor Plating Weapon Improved EM Shotgun Energy Gun Improved EM Shotgun Energy Cannon Nova Cannon Ballistic Gun Assault Rifle Ballistic Cannon Linear Accelerator Launcher Rocket Launcher Special Weapon Improved Remote Datajack Special Melee Weapon Improved Datajack Build | -11 -10 -10 -9 -9 -9 -8 -8 -8 -8 -8 -7 -7 -7 -7 -6 -6 -5 -5 -4 -4 -3 -3 -2 -2 -1 ------- Run | Yrd Mat Min Mat Min Exi Min Mat Gar Mat Gar Fac Gar Fac Gar Fac Gar Fac Gar Fac Gar Res Gar Res Tes Acc Slots Evolved 18 | . . . 2 . . . 2 . . . 2 . . . 2 . 2 . 2 . 2 . 2 . 2 Power 1 | . . . . . . . . . . . . . . . . . 1 . . . . . . . . Propulsion 4 | . . . . . . . . . . . 1 . . . 1 . . . . . . . . . 2 Utility 12 | . . . 2 . . . 2 . . . 1 . . . 1 . 1 . 1 . 2 . 2 . . Weapon 1 | . . . . . . . . . . . . . . . . . . . 1 . . . . . . Parts Attached 191 | 7 7 1 18 4 1 . 20 3 2 4 2 13 1 4 3 12 5 16 8 12 2 11 27 6 2 Power 16 | 1 . 1 2 . . . 1 . . . . 2 . . 1 . 1 2 . . . 1 3 1 . Engine 6 | 1 . 1 1 . . . 1 . . . . 2 . . . . . . . . . . . . . Core 2 | . . . 1 . . . . . . . . . . . 1 . . . . . . . . . . Reactor 8 | . . . . . . . . . . . . . . . . . 1 2 . . . 1 3 1 . Propulsion 33 | 2 2 . 2 . . . 6 1 1 . 1 1 . 1 1 3 . 2 2 2 . . 4 2 . Treads 27 | 2 2 . 2 . . . 6 1 1 . 1 1 . 1 1 3 . 2 . 2 . . 2 . . Leg . | . . . . . . . . . . . . . . . . . . . . . . . . . . Wheel 4 | . . . . . . . . . . . . . . . . . . . 2 . . . 2 . . Hover . | . . . . . . . . . . . . . . . . . . . . . . . . . . Flight 2 | . . . . . . . . . . . . . . . . . . . . . . . . 2 . Utility 92 | 2 3 . 7 3 . . 6 1 1 1 1 7 . 3 1 5 4 8 5 9 1 7 15 1 1 Device 25 | 1 . . 2 2 . . 2 . . . . 4 . . . 1 4 2 1 2 1 1 2 . . Storage 7 | 1 3 . 1 . . . . . . . . . . . . . . . . . . 1 1 . . Processor 4 | . . . . . . . 1 . . . . . . . . . . . 1 . . . 2 . . Hackware 33 | . . . . . . . . . . 1 1 2 . 1 1 4 . 4 2 6 . 1 9 . 1 Protection 23 | . . . 4 1 . . 3 1 1 . . 1 . 2 . . . 2 1 1 . 4 1 1 . Artifact . | . . . . . . . . . . . . . . . . . . . . . . . . . . Weapon 50 | 2 2 . 7 1 1 . 7 1 . 3 . 3 1 . . 4 . 4 1 1 1 3 5 2 1 Energy Gun 10 | . . . 6 . . . 3 . . . . 1 . . . . . . . . . . . . . Energy Cannon 12 | . . . . . . . 1 1 . 1 . 1 1 . . 1 . 3 . . . . 1 2 . Ballistic Gun 3 | 2 . . . . . . . . . . . . . . . 1 . . . . . . . . . Ballistic Cannon 11 | . 1 . 1 . . . 2 . . . . 1 . . . 1 . . 1 1 . . 2 . 1 Launcher 7 | . 1 . . 1 . . . . . 1 . . . . . . . . . . . 2 2 . . Special Weapon 5 | . . . . . . . . . . 1 . . . . . 1 . 1 . . 1 1 . . . Impact Weapon . | . . . . . . . . . . . . . . . . . . . . . . . . . . Slashing Weapon . | . . . . . . . . . . . . . . . . . . . . . . . . . . Piercing Weapon . | . . . . . . . . . . . . . . . . . . . . . . . . . . Special Melee Weapon 2 | . . . . . 1 . 1 . . . . . . . . . . . . . . . . . . Unidentified Prototypes 10 | . . . . 1 . . 1 . . . . . 1 . . . . 1 . . . . 3 3 . Parts Lost 63 | . . 1 3 . . . 3 . . . . 2 . . . 1 . 3 . 1 . 8 25 1 15 Power 8 | . . 1 1 . . . . . . . . . . . . . . . . . . 1 3 . 2 Propulsion 10 | . . . . . . . . . . . . . . . . . . . . . . . 6 . 4 Utility 35 | . . . 1 . . . 3 . . . . 2 . . . 1 . 3 . 1 . 5 11 1 7 Weapon 10 | . . . 1 . . . . . . . . . . . . . . . . . . 2 5 . 2 Highest Loss Streak 14 | . . 1 1 . . . 1 . . . . 1 . . . 1 . 2 . 1 . 6 12 1 14 To Critical Strikes . | . . . . . . . . . . . . . . . . . . . . . . . . . . Average Backups 17 | 3 10 19 19 20 20 20 19 18 19 19 18 18 18 17 16 16 17 16 16 16 16 18 22 3 3 Power . | . 1 . . 1 1 1 1 1 1 1 1 . 1 1 1 1 . . 1 1 1 1 . 1 . Propulsion 4 | 1 3 6 6 6 6 6 6 5 5 5 4 4 4 3 3 4 4 2 2 1 1 1 1 . . Utility 5 | . 1 2 4 5 5 5 3 4 6 6 5 5 5 5 4 5 8 6 7 8 8 10 13 . . Weapon 6 | 1 4 9 7 7 7 7 7 7 5 5 6 6 6 5 6 5 4 5 5 4 5 3 4 1 1 Tool/Special . | . . . . . . . . . . . . . . . . . . . . . . . . . . Unused Backups 42 | . 8 1 11 1 . . 3 2 . 1 . . . 2 . 1 . 8 . 1 . . 3 . . Power 1 | . . . . . . . . . . . . . . . . . . 1 . . . . . . . Propulsion 12 | . 3 1 1 . . . . . . 1 . . . 1 . 1 . 3 . 1 . . . . . Utility 15 | . 2 . 4 . . . . 1 . . . . . 1 . . . 4 . . . . 3 . . Weapon 14 | . 3 . 6 1 . . 3 1 . . . . . . . . . . . . . . . . . Tool/Special . | . . . . . . . . . . . . . . . . . . . . . . . . . . Average Slot Usage (%) 91 | . 98 100 95 100 100 100 97 100 100 100 96 98 100 90 92 90 81 82 79 86 84 82 76 44 38 Engine 6 | . 14 14 9 11 11 11 9 9 9 9 7 7 7 7 5 . . . . . . . . . . Core 1 | . . . 1 . . . . . . . . . . . . 6 5 4 . . . . . . . Reactor 2 | . . . . . . . . . . . . . . . . . 1 5 9 10 9 9 7 . . Treads 17 | . 28 28 21 22 22 22 18 18 18 18 23 23 23 23 26 24 17 11 6 6 4 5 3 . . Wheel 1 | . . . . . . . . . . . . . . . . . . . 6 7 9 7 7 . . Device 13 | . 12 14 10 11 11 11 8 9 9 9 7 10 23 19 13 15 20 23 17 16 18 17 16 4 2 Storage 8 | . 14 14 11 11 11 11 13 18 9 9 7 7 7 7 6 6 5 5 5 5 4 4 4 . . Hackware 7 | . . . . . . . . . . 2 11 14 7 7 12 13 11 10 16 16 19 18 19 29 20 Protection 14 | . . . 17 22 22 22 25 27 35 33 23 18 15 10 12 10 5 4 5 7 4 6 5 . 1 Energy Gun 5 | . . . 20 17 5 11 15 5 . . . 3 7 4 . 1 . . . . . . . . . Energy Cannon 2 | . . . . . . . . 3 9 7 7 6 5 6 6 6 5 5 . 4 4 3 . . . Ballistic Gun 1 | . 20 14 . . . . . . . . . . . . . . . 1 . 1 . . . . . Ballistic Cannon 2 | . 7 14 1 . . . 1 . 7 5 2 . 1 . . . . . 4 3 4 4 4 . . Launcher 1 | . . . . 4 11 11 . . . 3 . 2 . . . . . . . 1 . . . . . Special Weapon 1 | . . . . . . . . . . . 4 1 . 1 6 1 4 2 4 3 4 1 1 1 . Peak Build Rating 144 | 7 12 12 26 31 24 24 36 34 37 38 42 50 49 50 54 84 104 112 123 131 134 140 144 83 87 Average Rating 56 | 5 7 11 21 24 23 24 31 31 36 36 40 44 48 48 52 62 89 105 117 125 131 127 124 56 61 On Entrance 55 | . 7 12 12 26 24 24 24 29 34 37 37 42 48 49 49 54 82 104 110 123 125 134 124 50 78 Avg Prop Armor Cover (%) 11 | . 10 . . . . . . . . . . . . . . . . . 9 9 10 10 14 . 20 Naked Turns . | . . . . . . . . . . . . . . . . . . . . . . . . . . Heaviest Build 247 | 14 51 51 72 72 72 72 88 90 98 103 88 88 80 86 85 90 123 137 158 153 144 237 247 16 16 Greatest Support 130 | 40 46 46 46 46 46 46 46 46 45 44 64 64 62 62 80 130 130 130 130 120 32 120 44 16 16 Greatest Overweight (x) 13 | . 1 1 1 1 1 1 1 1 2 2 1 1 1 1 1 1 . 1 4 4 4 7 13 1 1 Average Overweight (x) 1 | . . . 1 1 1 1 1 1 1 1 1 1 1 1 . . . . 2 3 4 4 4 . . Largest Inventory Capacity 30 | 8 20 20 20 20 20 20 20 20 20 20 20 20 20 20 20 20 20 20 20 20 20 30 30 5 5 Average Capacity 20 | 7 13 20 20 20 20 20 20 20 20 20 20 20 20 20 20 20 20 20 20 20 20 24 29 5 5 Most Carried 30 | 5 20 20 20 20 20 20 20 20 20 20 20 20 20 20 20 20 20 20 20 20 20 28 30 5 5 Average Carried 19 | 3 10 19 19 20 19 20 19 19 19 19 19 19 20 19 19 19 19 19 19 19 19 22 26 4 4 Final Capacity 30 | 8 20 20 20 20 20 20 20 20 20 20 20 20 20 20 20 20 20 20 20 20 20 30 5 5 5 Final Carried 28 | 5 20 20 20 20 20 20 20 20 20 20 20 20 20 20 20 20 20 20 19 20 20 28 4 5 5 Class Distribution -------------------- 62% | Mutant 17% | Botlord-Tank 8% | Botlord-Mutant 5% | Commander-Mutant Dominant Class ---------------- Mutant | -10/Materials Mutant | -10/Mines Mutant | -9/Materials Mutant | -9/Mines Mutant | -9/Exiles Mutant | -8/Mines Mutant | -8/Materials Commander-Mutant | -8/Garrison Commander-Mutant | -8/Materials Mutant | -8/Garrison Mutant | -7/Factory Mutant | -7/Garrison Mutant | -7/Factory Mutant | -7/Garrison Mutant | -6/Factory Mutant | -6/Garrison Botlord-Mutant | -5/Factory Botlord-Mutant | -5/Garrison Botlord-Tank | -4/Factory Botlord-Tank | -4/Garrison Botlord-Tank | -3/Research Botlord-Tank | -3/Garrison Botlord-Tank | -2/Research Botlord-Mutant | -2/Testing Botlord-Sprinter | -1/Access Resources | -11 -10 -10 -9 -9 -9 -8 -8 -8 -8 -8 -7 -7 -7 -7 -6 -6 -5 -5 -4 -4 -3 -3 -2 -2 -1 ----------- Run | Yrd Mat Min Mat Min Exi Min Mat Gar Mat Gar Fac Gar Fac Gar Fac Gar Fac Gar Fac Gar Res Gar Res Tes Acc Matter Collected 8954 | 334 538 116 255 94 20 39 551 . 137 297 . 542 67 316 . 987 195 1595 107 749 10 933 964 93 15 Remotely 481 | . . . . . . . . . . . . 152 40 . . 114 . 175 . . . . . . . Salvage Created 12964 | 152 378 66 1696 80 . 24 2180 . 44 254 . 620 27 1231 . 878 37 1648 38 434 . 1762 1415 . . Parts 636 | 9 28 9 99 3 . 10 111 . 3 13 . 37 1 51 . 39 1 65 1 27 . 79 50 . . Haulers Intercepted 15 | . 2 . 6 . . . 6 . 1 . . . . . . . . . . . . . . . . Recyclers Shooed 5 | . . . . . . . 4 . . . . . . . . . . . . . . . 1 . . Parts Field Recycled . | . . . . . . . . . . . . . . . . . . . . . . . . . . Retrieved Matter . | . . . . . . . . . . . . . . . . . . . . . . . . . . Parts Self-Destructed . | . . . . . . . . . . . . . . . . . . . . . . . . . . Prevented . | . . . . . . . . . . . . . . . . . . . . . . . . . . Parts Restored . | . . . . . . . . . . . . . . . . . . . . . . . . . . Kills | -11 -10 -10 -9 -9 -9 -8 -8 -8 -8 -8 -7 -7 -7 -7 -6 -6 -5 -5 -4 -4 -3 -3 -2 -2 -1 ------- Run | Yrd Mat Min Mat Min Exi Min Mat Gar Mat Gar Fac Gar Fac Gar Fac Gar Fac Gar Fac Gar Res Gar Res Tes Acc Combat Hostiles Destroyed 245 | . 14 2 27 6 . 6 35 . . 12 . 20 1 18 . 15 1 27 1 8 . 29 23 . . Guns 60 | . 5 . 22 3 . . 20 . . . . 2 . 4 . 2 . 1 . . . 1 . . . Cannons 62 | . 3 2 1 . . . 6 . . 2 . 2 1 8 . 9 1 6 1 4 . 8 8 . . AOE 110 | . 6 . 2 3 . 6 8 . . 10 . 15 . 6 . 4 . 17 . 4 . 15 14 . . Classes Destroyed 20 | 2 6 . 2 1 . . 2 . . 1 . 1 . 1 . . . 4 . . . . . . . Worker 7 | . 1 . 1 1 . . 2 . . . . . . . . . . . . . . . 2 . . Builder 6 | . 1 . 1 . . . 2 . . . . . . . . . . . . . . . 2 . . Tunneler 7 | 4 . 1 1 . . . . . . . . . 1 . . . . . . . . . . . . Hauler 15 | . 2 . 6 . . . 6 . 1 . . . . . . . . . . . . . . . . Recycler 10 | 1 . . 1 . . . 4 . . . . . . . . 1 . . . . . . 3 . . Operator 1 | . . . . . . . 1 . . . . . . . . . . . . . . . . . . Watcher 1 | . 1 . . . . . . . . . . . . . . . . . . . . . . . . Swarmer 61 | . 9 . 3 2 . 6 6 . . 3 . 10 . 3 . 4 . . . . . 15 . . . Cutter 7 | . . . . . . . . . . . . . . 3 . . . . . 4 . . . . . Saboteur 4 | . . . . . . . . . . . . . . . . . . 3 . . . . 1 . . Grunt 86 | . 5 2 13 . . . 18 . . 8 . 4 1 6 . 5 1 7 . . . 9 7 . . Brawler 7 | . . . 2 . . . . . . . . . . . . . . 1 . . . 1 3 . . Duelist 8 | . . . . . . . . . . . . . . . . . . 4 1 . . . 3 . . Sentry 27 | . . . 9 . . . 8 . . . . 1 . 2 . 2 . . . 1 . 3 1 . . Specialist 6 | . . . . . . . . . . . . 3 . . . . . 3 . . . . . . . Hunter 13 | . . . . . . . 3 . . . . 1 . . . 2 . 4 . 1 . . 2 . . Programmer 19 | . . . . . . . . . . 1 . 1 . 5 . 3 . 2 . 1 . . 6 . . Behemoth 5 | . . . . . . . . . . . . . . . . . . 3 . 1 . 1 . . . Executioner 1 | . . . . . . . . . . . . . . . . . . 1 . . . . . . . Assembled 4 | . . . . 4 . . . . . . . . . . . . . . . . . . . . . Best Kill Streak 15 | 3 4 2 7 2 . 3 6 . 1 4 . 8 2 3 . 4 1 12 1 4 . 15 8 . . Combat Bots Only 15 | . 3 2 6 2 . 3 5 . . 4 . 8 1 3 . 4 1 12 1 4 . 15 7 . . Max Kills in Single Turn 4 | 1 2 1 1 1 . 3 3 . 1 3 . 2 1 3 . 3 1 3 1 4 . 3 3 . . Gunslinging . | . . . . . . . . . . . . . . . . . . . . . . . . . . Exploded 4 | . 2 . 1 1 . 3 2 . . 3 . 2 . 3 . 3 . 3 . 4 . 3 3 . . Melee . | . . . . . . . . . . . . . . . . . . . . . . . . . . Uniques/NPCs Destroyed . | . . . . . . . . . . . . . . . . . . . . . . . . . . Combat | -11 -10 -10 -9 -9 -9 -8 -8 -8 -8 -8 -7 -7 -7 -7 -6 -6 -5 -5 -4 -4 -3 -3 -2 -2 -1 -------- Run | Yrd Mat Min Mat Min Exi Min Mat Gar Mat Gar Fac Gar Fac Gar Fac Gar Fac Gar Fac Gar Res Gar Res Tes Acc Hostile Shots Fired 1545 | . 58 11 110 15 . 13 131 . . 28 . 75 7 113 . 111 5 126 9 51 . 165 300 6 211 Missed 491 | . 25 2 36 4 . 5 35 . . 7 . 19 3 43 . 43 2 27 3 14 . 47 89 1 86 Hits 1054 | . 33 9 74 11 . 8 96 . . 21 . 56 4 70 . 68 3 99 6 37 . 118 211 5 125 Melee 21 | . . . . . . . . . . . . . . . . 1 . 7 . . . 2 11 . . Projectile 1033 | . 33 9 74 11 . 8 96 . . 21 . 56 4 70 . 67 3 92 6 37 . 116 200 5 125 AOE 12 | . 2 . . . . . . . . . . . . 3 . . . . . 5 . . . . 2 Critical Strikes 57 | . 1 . 5 1 . . 5 . . . . 1 . 4 . 5 . 8 1 3 . 6 15 . 2 Part Disruptions 8 | . 1 . . . . . . . . . . . . 1 . 1 . 2 . . . . 3 . . Damage Taken 19774 | . 345 117 1154 113 . 56 1362 . . 325 . 866 60 1130 . 934 29 1657 54 493 11 2752 5324 140 2852 Core 3278 | . 41 17 102 10 . 9 82 . . 14 . 32 . 67 . 49 . 105 . 15 . 143 872 110 1610 Absorbed by Shields 2154 | . . . . . . . . . . . . . . . . 27 29 966 58 486 12 371 205 . . Reduced by Siege Mode 318 | . . . . . . . . . . . . . . . . . . 103 . 20 . 195 . . . Redirected to Shielding 57 | . . . 57 . . . . . . . . . . . . . . . . . . . . . . Ignored by Resistances 108 | . . . . . . . 108 . . . . . . . . . . . . . . . . . . Regen/Repaired (Parts) 990 | . . . 218 . . . 208 . . . . . . . 437 127 . . . . . . . . . Core Remaining (%) 81 | 100 . 76 . . . 69 . . . 82 . . . 85 . 94 . 89 . 98 . 89 . 32 . Volleys Fired 881 | 16 27 6 78 13 . 4 90 5 1 38 1 46 3 87 6 85 7 128 18 56 2 80 63 1 20 Largest 3 | 2 2 2 2 2 . 1 2 1 2 2 1 2 2 2 1 2 2 2 1 2 1 3 2 1 1 Hottest 280 | 40 50 50 90 90 . 33 90 90 127 180 5 130 60 93 5 144 144 218 113 226 113 280 134 120 120 Shots Fired 1358 | 32 51 12 156 22 . 4 170 5 2 50 1 54 5 134 6 126 11 185 18 74 2 128 89 1 20 Gun 527 | 32 41 6 148 18 . . 130 . . . . 10 2 39 . 27 . 39 . 9 . 21 5 . . Cannon 619 | . 6 6 8 . . . 35 5 2 37 . 22 2 87 . 86 10 93 9 41 1 87 61 1 20 Launcher 96 | . 4 . . 4 . 4 5 . . 11 . 14 . 4 . 3 . 16 . 4 . 15 12 . . Special 116 | . . . . . . . . . . 2 1 8 1 4 6 10 1 37 9 20 1 5 11 . . Kinetic 383 | 32 47 12 11 . . . 35 . 1 10 . 1 2 . . 22 4 50 7 13 . 68 61 . 7 Thermal 435 | . . . . . . . . 5 1 27 . 16 2 117 . 85 6 82 2 37 1 40 . 1 13 Explosive 81 | . 4 . . 4 . 4 5 . . 11 . 14 . 4 . 3 . 16 . 4 . . 12 . . Electromagnetic 343 | . . . 145 18 . . 130 . . . . 15 . 9 . 6 . . . . . 15 5 . . Robot Hit Streak 43 | 7 12 14 18 9 . . 13 . 8 12 13 10 10 43 13 8 8 20 4 32 33 19 10 . . Robot Miss Streak 8 | 1 4 1 4 5 . 2 5 . . 2 . 2 . 2 1 3 1 3 1 2 . 8 3 . 1 Penetration Max 1 | . . . . . . . . . . . . . . . . . . 1 . . . . . . . Secondary Targets 5 | . . . 2 . . . 3 . . . . . . . . . . . . . . . . . . Max Gunslinging Chain 1 | . . . 1 . . . 1 . . . . . . . . . . . . . . . . . . Shots Hit Robots 885 | 22 32 9 126 10 4 . 131 9 2 25 1 29 4 91 5 58 7 131 10 48 1 76 54 . . Core Hits 586 | 8 25 5 80 9 . 4 115 . 1 20 . 31 1 49 . 27 2 63 . 14 . 79 52 . 1 Critical Kills 10 | . . . . . . . . . . . . 1 . . . 1 . 4 . . . 4 . . . Critical Parts Destroyed 12 | . . . . . . . . . . . . . . . . 1 . 7 . 2 . 1 1 . . Critical Strikes 34 | . . . . . . . . . . . . 1 1 . . 3 . 14 . 3 . 6 6 . . Burn 1 | . . . . . . . . . . . . . . . . 1 . . . . . . . . . Meltdown 6 | . . . . . . . . . . . . 1 . . . . . 4 . . . 1 . . . Destroy 20 | . . . . . . . . . . . . . . . . 2 . 10 . 3 . 4 1 . . Blast 7 | . . . . . . . . . . . . . 1 . . . . . . . . 1 5 . . Melee Attacks 14 | . . . . . 4 . . 9 1 . . . . . . . . . . . . . . . . Impact . | . . . . . . . . . . . . . . . . . . . . . . . . . . Slashing . | . . . . . . . . . . . . . . . . . . . . . . . . . . Piercing . | . . . . . . . . . . . . . . . . . . . . . . . . . . Sneak Attacks 14 | . . . . . 4 . . 9 1 . . . . . . . . . . . . . . . . Combat Hostiles . | . . . . . . . . . . . . . . . . . . . . . . . . . . Follow-up Attacks . | . . . . . . . . . . . . . . . . . . . . . . . . . . Damage Inflicted 31612 | 232 691 138 2078 324 . 472 3217 . 41 1552 . 1894 105 2721 . 1793 235 4576 207 1481 . 3973 5871 . 11 Guns 5604 | 232 251 53 1641 121 . . 1840 . . . . 95 18 563 . 266 . 344 . 59 . 96 25 . . Cannons 12894 | . 112 81 102 . . . 511 . 32 524 . 406 61 1711 . 1165 235 2128 207 1024 . 2209 2386 . . Explosions 12777 | . 306 . 206 179 . 432 805 . . 1028 . 1389 . 447 . 355 . 2104 . 398 . 1668 3460 . . Melee . | . . . . . . . . . . . . . . . . . . . . . . . . . . Ramming 337 | . 22 4 129 24 . 40 61 . 9 . . 4 26 . . 7 . . . . . . . . 11 Kinetic 7082 | 232 363 134 131 . . . 511 . . 163 . 25 61 . . 417 171 728 207 308 . 1391 2240 . . Thermal 7980 | . . . 206 . . . 434 . 32 361 . 403 18 2086 . 907 64 1744 . 775 . 950 . . . Explosive 10251 | . 306 . . 179 . 432 371 . . 1028 . 1222 . 396 . 355 . 2104 . 398 . . 3460 . . Electromagnetic 5962 | . . . 1612 121 . . 1840 . . . . 240 . 239 . 107 . . . . . 1632 171 . . Impact . | . . . . . . . . . . . . . . . . . . . . . . . . . . Slashing . | . . . . . . . . . . . . . . . . . . . . . . . . . . Piercing . | . . . . . . . . . . . . . . . . . . . . . . . . . . Highest Corruption 23 | . 3 3 . . . . . . . . . . . 5 . 3 . 5 . . . 8 23 23 . Average Corruption 5 | . 1 3 . . . . . . . . . . . 4 . 2 . 4 . . . 7 13 23 . Corruption Purged . | . . . . . . . . . . . . . . . . . . . . . . . . . . Corruption Blocked . | . . . . . . . . . . . . . . . . . . . . . . . . . . Effects 211 | . 12 24 . . . . . . . . . . . 37 . 12 . 44 . . . 40 33 9 . Message Errors 46 | . 2 5 . . . . . . . . . . . 13 . 2 . 6 . . . 7 10 1 . Matter Fused 59 | . 5 10 . . . . . . . . . . . 6 . 5 . 18 . . . 10 4 1 . Heat Flow Errors 25 | . . 2 . . . . . . . . . . . 4 . 2 . 7 . . . 5 4 1 . Energy Discharges 18 | . . 2 . . . . . . . . . . . 5 . . . 2 . . . 6 1 2 . Parts Rejected 5 | . . . . . . . . . . . . . . 2 . . . . . . . . 3 . . Parts Fused 4 | . . . . . . . . . . . . . . 1 . . . . . . . 2 1 . . Data Loss (minor) 28 | . 4 5 . . . . . . . . . . . 3 . 1 . 7 . . . 4 3 1 . Data Loss (major) 3 | . . . . . . . . . . . . . . . . . . . . . . 1 2 . . Misfires 8 | . 1 . . . . . . . . . . . . 2 . 2 . 1 . . . 1 1 . . Alerts 8 | . . . . . . . . . . . . . . . . . . 3 . . . 4 1 . . Misdirections 4 | . . . . . . . . . . . . . . . . . . . . . . . 1 3 . Weapon Failures 3 | . . . . . . . . . . . . . . 1 . . . . . . . . 2 . . Overload Shots . | . . . . . . . . . . . . . . . . . . . . . . . . . . Overflow Damage 796 | . 3 . . . . 24 8 . . 16 . 46 9 17 . 63 . 103 37 . . 5 465 . . Projectiles 462 | . . . . . . . . . . 16 . 1 3 . . 63 . 91 37 . . 5 246 . . Explosions 328 | . 3 . . . . 24 8 . . . . 45 . 17 . . . 12 . . . . 219 . . Melee 6 | . . . . . . . . . . . . . 6 . . . . . . . . . . . . Knockbacks 45 | . 2 1 2 . . . 4 . . 4 . . 1 . . 4 . 2 1 . . 3 21 . . Impact 2 | . . . 2 . . . . . . . . . . . . . . . . . . . . . . Kinetic 40 | . 2 1 . . . . 4 . . 4 . . 1 . . 4 . 2 1 . . 3 18 . . Secondary 3 | . . . . . . . . . . . . . . . . . . . . . . . 3 . . Self-Inflicted Damage 879 | . . . 29 . . . 88 . . . . 115 . 29 . . . 106 . 35 . 237 235 . 5 Shots 37 | . . . 1 . . . 5 . . . . 3 . 2 . . . 4 . 2 . 16 4 . . Rammed 35 | . 5 1 15 2 . 2 6 . 1 . . 1 . . . 1 . . . . . . . . 1 Targets Rammed 41 | . 6 2 16 2 . 2 8 . 1 . . 1 1 . . 1 . . . . . . . . 1 Kicked . | . . . . . . . . . . . . . . . . . . . . . . . . . . Crushed 6 | . 1 1 1 . . . 2 . . . . . 1 . . . . . . . . . . . . Highest Temperature 425 | . 12 257 37 225 . 4 318 44 72 378 . 120 . 252 . 70 199 425 36 216 . 199 160 22 333 Average Temperature 74 | . 5 76 11 81 . 2 65 28 37 128 . 45 . 102 . 24 94 75 22 36 . 84 52 16 165 Received Heat Transfer 4106 | . 78 72 468 . . . 558 . . 153 . 84 36 150 . 159 12 1232 26 186 . 388 441 27 36 Effects 8 | . . . . 3 . . . . . 4 . . . . . . . . . . . . . . 1 Energy Bleed 3 | . . . . . . . . . . 3 . . . . . . . . . . . . . . . Interference 3 | . . . . 3 . . . . . . . . . . . . . . . . . . . . . Matter Decay 1 | . . . . . . . . . . 1 . . . . . . . . . . . . . . . Damage (minor) 1 | . . . . . . . . . . . . . . . . . . . . . . . . . 1 Siege Activations 11 | . . . . . . . . . . . . . . . . . . 5 . 5 . 1 . . . Total Turns 232 | . . . . . . . . . . . . . . . . . . 117 . 66 . 49 . . . Longest Duration 49 | . . . . . . . . . . . . . . . . . . 36 . 42 . 49 . . . Martial Activations . | . . . . . . . . . . . . . . . . . . . . . . . . . . Shielding Activations . | . . . . . . . . . . . . . . . . . . . . . . . . . . Robots Disrupted 2 | . . . . . . . . . . . . . . . . . . . . . . 2 . . . Combat Hostiles 2 | . . . . . . . . . . . . . . . . . . . . . . 2 . . . Robots Corrupted 11 | . . . 2 1 . . 1 . . . . 1 . 1 . . . . . . . 4 1 . . Combat Hostiles 9 | . . . 2 . . . 1 . . . . 1 . . . . . . . . . 4 1 . . Parts Fried 35 | . . . 15 1 . . 5 . . . . 1 1 . . . . . . . . 11 1 . . Impact Corruptions 2 | . . . . 1 . . . . . . . . 1 . . . . . . . . . . . . Robots Melted 6 | . . . . . . . . . . . . 1 . . . . . 4 . . . 1 . . . Combat Hostiles 6 | . . . . . . . . . . . . 1 . . . . . 4 . . . 1 . . . Parts Melted 29 | . . . . . . . . . . 1 . 3 . 6 . 9 . 10 . . . . . . . Heat Transferred 9966 | . . . 150 . . . 550 . 50 500 . 485 37 2973 . 1399 100 2192 . 629 . 901 . . . Parts Sabotaged . | . . . . . . . . . . . . . . . . . . . . . . . . . . Parts Stolen . | . . . . . . . . . . . . . . . . . . . . . . . . . . Parts Stripped . | . . . . . . . . . . . . . . . . . . . . . . . . . . Power Chain Reactions 18 | . . . 4 . . . 7 . . . . 1 . 1 . . . . . . . 3 2 . . Alert | -11 -10 -10 -9 -9 -9 -8 -8 -8 -8 -8 -7 -7 -7 -7 -6 -6 -5 -5 -4 -4 -3 -3 -2 -2 -1 ------- Run | Yrd Mat Min Mat Min Exi Min Mat Gar Mat Gar Fac Gar Fac Gar Fac Gar Fac Gar Fac Gar Res Gar Res Tes Acc Maximum Alert Level 5 | . . . . . . . 2 2 1 3 1 3 2 3 2 3 2 5 4 5 4 5 4 5 4 Low Security (%) 42 | 100 100 100 100 100 . 100 68 . 81 16 . 11 . 5 . 19 . . . . . . . . . Level 1 16 | . . . . . . . 24 66 18 26 100 34 88 48 81 34 . 19 . . . . . . . Level 2 12 | . . . . . . . 6 33 . 54 . 14 11 29 18 26 99 19 . 26 . . . . . Level 3 14 | . . . . . . . . . . 1 . 38 . 15 . 19 . 12 41 31 99 28 67 . 75 Level 4 7 | . . . . . . . . . . . . . . . . . . 11 58 36 . 24 32 . 24 Level 5 6 | . . . . . . . . . . . . . . . . . . 37 . 6 . 46 . . . High Security . | . . . . . . . . . . . . . . . . . . . . . . . . . . Max Security . | . . . . . . . . . . . . . . . . . . . . . . . . 99 . Peak Influence 2326 | 5 127 50 199 31 . 95 411 601 292 705 369 803 421 815 439 1031 541 2326 1220 1656 1095 1885 1568 1615 1145 Initial 1220 | . . 1 7 31 . . . 258 292 . 369 195 421 165 427 163 541 289 1220 595 931 813 1059 808 1100 Average 502 | . 38 3 70 2 . 25 159 395 84 402 326 504 332 443 333 466 472 1216 1105 1044 934 1473 1106 1602 1045 Influence Increases 13287 | 25 431 55 870 79 . 181 1036 343 150 785 . 668 25 650 12 928 82 2307 351 1191 304 1392 1217 15 190 Destroy 0b10 Robot/C 5988 | . 280 40 540 40 . 120 628 . 60 420 . 420 20 360 . 300 60 900 120 400 100 720 460 . . Destroy 0b10 Robot/NC 286 | 25 25 5 50 5 . . 66 . 10 . . 5 5 25 . . . 10 . 5 5 10 35 . . Destroy Leader 836 | . 56 10 182 . . 20 174 . 34 30 . 20 . 20 . 20 . 30 30 30 40 60 80 . . Allied During Kill 1068 | . . . . . . . . . 46 91 . 20 . . . . 2 292 120 243 145 100 9 . . Trap Triggered on 0b10 20 | . 20 . . . . . . . . . . . . . . . . . . . . . . . . Successful Hack 271 | . 23 . 40 . . . 19 28 . . . 14 . 14 12 14 12 12 30 10 . 6 21 . 16 Disable Machine 315 | . 15 . . . . 15 30 . . 30 . . . 30 . 60 . 15 15 . . 30 60 15 . Anti-Garrison Action 2450 | . . . . . . . . 300 . 150 . 100 . 150 . 400 . 700 . 350 . 300 . . . Destroy Structure 1570 | . 12 . 13 34 . 26 71 15 . 34 . 89 . 51 . 59 8 303 36 153 14 151 492 . 9 Partial Spotted 30 | . . . 15 . . . . . . . . . . . . . . . . . . 15 . . . Lose Combat Pursuer 453 | . . . 30 . . . 48 . . 30 . . . . . 75 . 45 . . . . 60 . 165 Influence Decreases 13277 | 25 427 39 810 159 . 181 638 140 751 80 426 144 592 71 594 130 700 394 1826 386 875 592 1664 640 993 Entered New Map 6917 | . . 3 13 49 . . . 140 309 . 336 84 382 71 388 70 490 124 1106 256 725 272 826 630 643 Time Decay 3892 | 25 427 36 580 110 . 181 607 . 252 . 90 . 190 . 206 . 170 . 270 . 130 . 518 . 100 Lost Part 610 | . . . 20 . . . 30 . . . . 20 . . . 10 . 30 . 10 . 80 250 10 150 Lost Ally 1361 | . . . . . . . 1 . 40 80 . 40 20 . . 50 40 240 300 120 20 240 70 . 100 Purge Threat 497 | . . . 197 . . . . . 150 . . . . . . . . . 150 . . . . . . Squads Dispatched 40 | . 3 . 3 . . . 5 . 1 . . . 1 . 1 . 2 . 3 . 6 . 8 6 1 Investigation 7 | . 1 . 1 . . . 2 . . . . . . . 1 . 1 . . . . . . . 1 Extermination 3 | . . . . . . . . . . . . . . . . . . . . . . . 3 . . Reinforcement 9 | . 2 . 2 . . . 3 . 1 . . . 1 . . . . . . . . . . . . Assault 18 | . . . . . . . . . . . . . . . . . 1 . 3 . 3 . 5 6 . Garrison 3 | . . . . . . . . . . . . . . . . . . . . . 3 . . . . Intercept . | . . . . . . . . . . . . . . . . . . . . . . . . . . Searches Triggered . | . . . . . . . . . . . . . . . . . . . . . . . . . . Construction Impeded . | . . . . . . . . . . . . . . . . . . . . . . . . . . Haulers Reinforced . | . . . . . . . . . . . . . . . . . . . . . . . . . . Active Scanning Responses . | . . . . . . . . . . . . . . . . . . . . . . . . . . Cargo Convoy Interrupts . | . . . . . . . . . . . . . . . . . . . . . . . . . . Alert ID Control Effect 20 | . . . . . . . . . . . . 2 . . . . . 1 1 4 1 3 4 1 3 Stealth | -11 -10 -10 -9 -9 -9 -8 -8 -8 -8 -8 -7 -7 -7 -7 -6 -6 -5 -5 -4 -4 -3 -3 -2 -2 -1 --------- Run | Yrd Mat Min Mat Min Exi Min Mat Gar Mat Gar Fac Gar Fac Gar Fac Gar Fac Gar Fac Gar Res Gar Res Tes Acc Distress Signals 28 | . 3 . 6 1 . . 12 . 1 . . . 1 . . . . . . 1 . . . . 3 Communications Jammed 331 | . . . . . . . . . . . . . . . . . . . 251 . 18 . 62 . . Distress Signals 331 | . . . . . . . . . . . . . . . . . . . 251 . 18 . 62 . . Times Spotted 451 | . 23 2 50 6 . 5 54 . 3 20 1 22 3 20 3 21 3 42 15 20 7 46 55 5 25 Peak Tracking Total 13 | . 4 2 5 2 . 3 7 . 1 7 1 5 3 3 1 3 2 11 4 4 2 13 9 5 12 Tactical Retreats 19 | . . . 1 1 . . 3 . . 2 . . . . . 4 . 2 . . . . 3 . 3 Traps | -11 -10 -10 -9 -9 -9 -8 -8 -8 -8 -8 -7 -7 -7 -7 -6 -6 -5 -5 -4 -4 -3 -3 -2 -2 -1 ------- Run | Yrd Mat Min Mat Min Exi Min Mat Gar Mat Gar Fac Gar Fac Gar Fac Gar Fac Gar Fac Gar Res Gar Res Tes Acc Traps Triggered 35 | . 1 . . . . . 2 . . 2 . 2 . 3 . 3 . 2 2 10 . 6 . 1 1 Indirectly 1 | . . . . . . . . . . . . . . . . . . . . . . 1 . . . Trap Hack Attempts 26 | . . . . . . . 11 . . 15 . . . . . . . . . . . . . . . Triggered . | . . . . . . . . . . . . . . . . . . . . . . . . . . Disarmed 4 | . . . . . . . 2 . . 2 . . . . . . . . . . . . . . . Reprogrammed 4 | . 4 . . . . . . . . . . . . . . . . . . . . . . . . Reused 3 | . 3 . . . . . . . . . . . . . . . . . . . . . . . . Traps Extracted . | . . . . . . . . . . . . . . . . . . . . . . . . . . Installed . | . . . . . . . . . . . . . . . . . . . . . . . . . . Triggered 2 | . 2 . . . . . . . . . . . . . . . . . . . . . . . . Machines | -11 -10 -10 -9 -9 -9 -8 -8 -8 -8 -8 -7 -7 -7 -7 -6 -6 -5 -5 -4 -4 -3 -3 -2 -2 -1 ---------- Run | Yrd Mat Min Mat Min Exi Min Mat Gar Mat Gar Fac Gar Fac Gar Fac Gar Fac Gar Fac Gar Res Gar Res Tes Acc Machines Disabled 45 | . 1 . . . . 1 2 2 . 3 . 1 . 4 . 6 . 9 1 4 . 6 4 1 . Max in Single Turn 2 | . 1 . . . . 1 1 1 . 1 . 1 . 1 . 1 . 2 1 1 . 1 1 1 . Garrison Access 1 | . . . . . . . . . . . . . . . . . . . . . . . . . 1 Garrison Relay 18 | . . . . . . . . 2 . 1 . 1 . 1 . 2 . 4 . 4 . 3 . . . Phase Generator 1 | . . . . . . . . . . . . . . . . . . 1 . . . . . . . Machines Repaired . | . . . . . . . . . . . . . . . . . . . . . . . . . . Machines Dismantled . | . . . . . . . . . . . . . . . . . . . . . . . . . . Machines Sabotaged . | . . . . . . . . . . . . . . . . . . . . . . . . . . Overloaded Fab Kills . | . . . . . . . . . . . . . . . . . . . . . . . . . . Hacking | -11 -10 -10 -9 -9 -9 -8 -8 -8 -8 -8 -7 -7 -7 -7 -6 -6 -5 -5 -4 -4 -3 -3 -2 -2 -1 --------- Run | Yrd Mat Min Mat Min Exi Min Mat Gar Mat Gar Fac Gar Fac Gar Fac Gar Fac Gar Fac Gar Res Gar Res Tes Acc Machines Accessed 86 | . 6 . 16 1 2 . 11 3 6 2 1 1 2 1 4 2 3 3 5 2 2 4 6 . 3 Terminals 53 | . 5 . 10 . . . 6 3 3 2 . 1 . 1 1 2 1 3 1 2 1 4 6 . 1 Fabricators 3 | . . . . . . . . . . . . . 1 . 1 . . . 1 . . . . . . Repair Stations 6 | . . . 2 . . . 1 . . . . . . . 1 . 1 . . . . . . . 1 Recycling Units 5 | . 1 . 2 . . . 1 . 1 . . . . . . . . . . . . . . . . Scanalyzers 7 | . . . 2 . . . 2 . 1 . . . . . . . . . 2 . . . . . . Garrison Access 9 | . . . . . . . 1 . 1 . 1 . 1 . 1 . 1 . 1 . 1 . . . 1 Total Hacks 196 | . 19 . 43 1 2 . 31 5 11 3 2 4 5 1 9 4 6 6 10 5 4 11 10 . 4 Successful 86 | . 9 . 20 1 2 . 16 2 4 . 2 1 3 1 4 1 3 3 6 1 2 1 2 . 2 Failed 109 | . 10 . 23 . . . 14 3 7 3 . 3 2 . 5 3 3 3 4 4 2 10 8 . 2 Catastrophic 27 | . 2 . 3 . . . 3 1 2 1 . . . . 1 2 2 2 1 . 1 2 3 . 1 Database Lockouts 1 | . . . . . . . 1 . . . . . . . . . . . . . . . . . . Manual 43 | . 5 . 13 . 1 . 9 1 5 . . . . . 1 . 1 1 3 . . . 3 . . Terminals 124 | . 17 . 29 . . . 14 5 5 3 . 4 . 1 2 4 1 6 3 5 2 11 10 . 2 Fabricators 6 | . . . . . . . . . . . . . 3 . 2 . . . 1 . . . . . . Repair Stations 18 | . . . 6 . . . 6 . . . . . . . 2 . 3 . . . . . . . 1 Recycling Units 12 | . 2 . 5 . . . 3 . 2 . . . . . . . . . . . . . . . . Scanalyzers 16 | . . . 3 . . . 7 . 2 . . . . . . . . . 4 . . . . . . Garrison Access 17 | . . . . . . . 1 . 2 . 2 . 2 . 3 . 2 . 2 . 2 . . . 1 Terminal Hacks 33 | . 6 . 11 1 2 . 2 2 1 . . 1 . 1 . 1 . 2 . 1 . 1 1 . . Record 1 | . . . . . 1 . . . . . . . . . . . . . . . . . . . . Robot Analysis 2 | . 1 . 1 . . . . . . . . . . . . . . . . . . . . . . Prototype ID Bank 2 | . . . 2 . . . . . . . . . . . . . . . . . . . . . . Open Door 2 | . . . . 1 . . . . . . . . . . . . . . . . . 1 . . . Open DSF 1 | . . . . . . . . . . . . . . . . . . . . . . . 1 . . Branch Access Points 1 | . . . 1 . . . . . . . . . . . . . . . . . . . . . . Emergency Access Points 6 | . . . 1 . . . . 1 . . . . . 1 . 1 . 1 . 1 . . . . . Terminal Index 1 | . 1 . . . . . . . . . . . . . . . . . . . . . . . . Unreport Threat 3 | . . . 2 . . . . . 1 . . . . . . . . . . . . . . . . Locate Traps 2 | . 1 . 1 . . . . . . . . . . . . . . . . . . . . . . Reprogram Traps 1 | . 1 . . . . . . . . . . . . . . . . . . . . . . . . Dispatch Records 1 | . 1 . . . . . . . . . . . . . . . . . . . . . . . . Hauler Manifests 4 | . 1 . 2 . . . 1 . . . . . . . . . . . . . . . . . . Registered Components 1 | . . . . . . . 1 . . . . . . . . . . . . . . . . . . Zone Layout 1 | . . . 1 . . . . . . . . . . . . . . . . . . . . . . Garrison Registry 3 | . . . . . . . . 1 . . . 1 . . . . . 1 . . . . . . . Proto ID Catalog 1 | . . . . . 1 . . . . . . . . . . . . . . . . . . . . Fabricator Hacks 2 | . . . . . . . . . . . . . 1 . 1 . . . . . . . . . . Network Status 2 | . . . . . . . . . . . . . 1 . 1 . . . . . . . . . . Repair Station Hacks 10 | . . . 4 . . . 3 . . . . . . . 1 . 1 . . . . . . . 1 Scan Component 6 | . . . 2 . . . 2 . . . . . . . 1 . 1 . . . . . . . . Repair 3 | . . . 2 . . . 1 . . . . . . . . . . . . . . . . . . Refit 1 | . . . . . . . . . . . . . . . . . . . . . . . . . 1 Recycling Unit Hacks 4 | . 1 . 1 . . . 1 . 1 . . . . . . . . . . . . . . . . Retrieve Components 4 | . 1 . 1 . . . 1 . 1 . . . . . . . . . . . . . . . . Scanalyzer 11 | . . . 2 . . . 6 . . . . . . . . . . . 3 . . . . . . Retrieve Study 11 | . . . 2 . . . 6 . . . . . . . . . . . 3 . . . . . . Garrison Access Hacks 16 | . . . . . . . 1 . 2 . 2 . 2 . 2 . 2 . 2 . 2 . . . 1 Unlock Access 8 | . . . . . . . 1 . 1 . 1 . 1 . 1 . 1 . 1 . 1 . . . . Seal Access 1 | . . . . . . . . . . . . . . . . . . . . . . . . . 1 Coupler Status 7 | . . . . . . . . . 1 . 1 . 1 . 1 . 1 . 1 . 1 . . . . Unauthorized Hacks 10 | . 2 . 2 . . . 3 . . . . . . . . . . 1 1 . . . 1 . . Terminals 8 | . 2 . 1 . . . 2 . . . . . . . . . . 1 1 . . . 1 . . Track 2 | . 1 . 1 . . . . . . . . . . . . . . . . . . . . . . Assimilate 2 | . . . . . . . 1 . . . . . . . . . . . 1 . . . . . . Botnet 3 | . . . . . . . 1 . . . . . . . . . . 1 . . . . 1 . . Operators 1 | . 1 . . . . . . . . . . . . . . . . . . . . . . . . Fabricators . | . . . . . . . . . . . . . . . . . . . . . . . . . . Repair Stations . | . . . . . . . . . . . . . . . . . . . . . . . . . . Recycling Units 2 | . . . 1 . . . 1 . . . . . . . . . . . . . . . . . . Mask 2 | . . . 1 . . . 1 . . . . . . . . . . . . . . . . . . Scanalyzers . | . . . . . . . . . . . . . . . . . . . . . . . . . . Garrison Access . | . . . . . . . . . . . . . . . . . . . . . . . . . . Data Cores Recovered . | . . . . . . . . . . . . . . . . . . . . . . . . . . Used . | . . . . . . . . . . . . . . . . . . . . . . . . . . Hacking Detections 74 | . 6 . 16 . . . 9 3 6 2 1 1 2 . 4 2 2 3 4 2 2 3 5 . 1 Full Trace Events 7 | . . . . . . . . . . . . 1 . . 1 . 1 1 . 1 . 1 . . 1 Feedback Events . | . . . . . . . . . . . . . . . . . . . . . . . . . . Feedback Blocked . | . . . . . . . . . . . . . . . . . . . . . . . . . . Robot Schematics Acquired . | . . . . . . . . . . . . . . . . . . . . . . . . . . Robots Built . | . . . . . . . . . . . . . . . . . . . . . . . . . . Authchips . | . . . . . . . . . . . . . . . . . . . . . . . . . . Time . | . . . . . . . . . . . . . . . . . . . . . . . . . . Total Robot Build Rating . | . . . . . . . . . . . . . . . . . . . . . . . . . . Part Schematics Acquired . | . . . . . . . . . . . . . . . . . . . . . . . . . . Parts Built . | . . . . . . . . . . . . . . . . . . . . . . . . . . Authchips . | . . . . . . . . . . . . . . . . . . . . . . . . . . Time . | . . . . . . . . . . . . . . . . . . . . . . . . . . Total Part Build Rating . | . . . . . . . . . . . . . . . . . . . . . . . . . . Part Studies Acquired 11 | . . . 2 . . . 6 . . . . . . . . . . . 3 . . . . . . Parts Repaired 3 | . . . 2 . . . 1 . . . . . . . . . . . . . . . . . . Time 102 | . . . 64 . . . 38 . . . . . . . . . . . . . . . . . . Parts Recycled . | . . . . . . . . . . . . . . . . . . . . . . . . . . Recycled Matter . | . . . . . . . . . . . . . . . . . . . . . . . . . . Retrieved Matter . | . . . . . . . . . . . . . . . . . . . . . . . . . . Retrieved Components 37 | . 10 . 10 . . . 8 . 9 . . . . . . . . . . . . . . . . Parts Scanalyzed . | . . . . . . . . . . . . . . . . . . . . . . . . . . Part Schematics Acquired . | . . . . . . . . . . . . . . . . . . . . . . . . . . Parts Damaged . | . . . . . . . . . . . . . . . . . . . . . . . . . . Bothacking | -11 -10 -10 -9 -9 -9 -8 -8 -8 -8 -8 -7 -7 -7 -7 -6 -6 -5 -5 -4 -4 -3 -3 -2 -2 -1 ------------ Run | Yrd Mat Min Mat Min Exi Min Mat Gar Mat Gar Fac Gar Fac Gar Fac Gar Fac Gar Fac Gar Res Gar Res Tes Acc Used RIF Installer 12 | . . . . . . . . 1 . 2 . 1 . 2 . 2 . 1 . 1 . 2 . . . Coupler Efficiency 1 | . . . . . . . . . . . . . . . . . . . . . . 1 . . . Command Fork 1 | . . . . . . . . . . . . . . 1 . . . . . . . . . . . Signal Jammer 1 | . . . . . . . . . . . . . . 1 . . . . . . . . . . . Zone Cloak 1 | . . . . . . . . . . 1 . . . . . . . . . . . . . . . Robot Detection 1 | . . . . . . . . . . . . . . . . . . 1 . . . . . . . Watcher Feeds 1 | . . . . . . . . . . . . 1 . . . . . . . . . . . . . Alert ID Control 1 | . . . . . . . . . . 1 . . . . . . . . . . . . . . . Program Shield 1 | . . . . . . . . . . . . . . . . . . . . . . 1 . . . Autooverride 2 | . . . . . . . . . . . . . . . . 1 . . . 1 . . . . . Autoassimilate 1 | . . . . . . . . . . . . . . . . 1 . . . . . . . . . Robots Hacked 73 | . . . . . 4 . . . 1 1 1 4 1 3 3 5 1 6 9 8 1 10 10 3 2 Non-combat 15 | . . . . . 3 . . . 1 . 1 . . . 3 . . . 4 . 1 . 2 . . Combat 58 | . . . . . 1 . . . . 1 . 4 1 3 . 5 1 6 5 8 . 10 8 3 2 Autooverrided 11 | . . . . . . . . . . . . . . . . . . 1 2 . . 4 2 . 2 Autoassimilated 16 | . . . . . . . . . . . . . . . . . 1 2 2 4 . 1 3 3 . Robot Hacks Applied 48 | . . . . . 4 . . . 1 1 1 4 1 3 3 6 . 3 6 4 1 5 5 . . parse_system 4 | . . . . . 4 . . . . . . . . . . . . . . . . . . . . no_distress 1 | . . . . . . . . . 1 . . . . . . . . . . . . . . . . drop_inventory 5 | . . . . . . . . . . . 1 . . . . . . . 2 . 1 . 1 . . purge_threat 1 | . . . . . . . . . . . . . . . . . . . 1 . . . . . . locate_traps 1 | . . . . . . . . . . . . . . . . . . . 1 . . . . . . map_route 1 | . . . . . . . . . . . . . . . 1 . . . . . . . . . . emergency_deploy 1 | . . . . . . . . . . . . . . . . . . . 1 . . . . . . amplify_resonance 10 | . . . . . . . . . . 1 . . 1 2 . 2 . 1 . . . 2 1 . . reboot_system 2 | . . . . . . . . . . . . 1 . . . . . . . . . . 1 . . overwrite_iff 8 | . . . . . . . . . . . . 1 . 1 . 3 . 1 . . . 2 . . . formatsys_low 4 | . . . . . . . . . . . . . . . 2 . . . 1 . . . 1 . . formatsys_high 10 | . . . . . . . . . . . . 2 . . . 1 . 1 . 4 . 1 1 . . Relay Couplers Released 81 | . . . . . . . . 8 . 4 . 7 . 4 . 9 . 18 . 20 . 11 . . . Machine Destruction 74 | . . . . . . . . 8 . 4 . 3 . 4 . 9 . 18 . 17 . 11 . . . Programmers 7 | . . . . . . . . . . . . 4 . . . . . . . 3 . . . . . Attached 30 | . . . . . . . . . . 1 1 2 . 1 1 4 . 4 2 5 . 1 8 . . Fabnet Peak Effective % . | . . . . . . . . . . . . . . . . . . . . . . . . . . Robots Rewired 38 | . . . . . . . . 7 . . . . . . . . . 21 . 10 . . . . . Allies Hacked 3 | . . . . . . . . . . 2 . . . . . . . . 1 . . . . . . Hacks Repelled . | . . . . . . . . . . . . . . . . . . . . . . . . . . Allies | -11 -10 -10 -9 -9 -9 -8 -8 -8 -8 -8 -7 -7 -7 -7 -6 -6 -5 -5 -4 -4 -3 -3 -2 -2 -1 -------- Run | Yrd Mat Min Mat Min Exi Min Mat Gar Mat Gar Fac Gar Fac Gar Fac Gar Fac Gar Fac Gar Res Gar Res Tes Acc Total Allies 96 | . . . . . . . 1 7 . . . 3 . 1 2 5 1 27 6 20 . 11 7 3 2 Largest Group 16 | . . . . . . . 1 7 7 5 . 2 1 1 2 2 2 16 13 14 13 10 5 3 3 Highest-Rated Group 795 | . . . . . . . 10 154 154 133 . 32 16 29 43 53 61 553 600 795 748 588 268 192 192 Highest-Rated Ally 119 | . . . . . . . 10 31 31 31 . 32 16 29 23 32 32 119 119 85 85 85 58 64 64 Total Orders 3 | . . . . . . . . . . . . . . . 1 2 . . . . . . . . . STAY 1 | . . . . . . . . . . . . . . . . 1 . . . . . . . . . AID 2 | . . . . . . . . . . . . . . . 1 1 . . . . . . . . . Ally Attacks 389 | . . . . . . . . . 13 38 . 21 2 2 . 3 5 84 33 62 29 59 16 5 17 Total Damage 13352 | . . . . . . . . . 152 843 . 287 . 39 . 64 176 2877 1376 2406 1555 2128 516 208 725 Kills 88 | . . . . . . . . . 4 10 . 3 . . . . 2 20 6 17 7 11 4 1 3 Allies Corrupted 5 | . . . . . . . . . . . . . . . . . . 1 1 . . . 2 . 1 Allies Melted 4 | . . . . . . . . . . . . . . . . . 1 2 . . . 1 . . . Intel | -11 -10 -10 -9 -9 -9 -8 -8 -8 -8 -8 -7 -7 -7 -7 -6 -6 -5 -5 -4 -4 -3 -3 -2 -2 -1 ------- Run | Yrd Mat Min Mat Min Exi Min Mat Gar Mat Gar Fac Gar Fac Gar Fac Gar Fac Gar Fac Gar Res Gar Res Tes Acc Active Infowar (turns) 16740 | 18 1407 1059 265 1439 893 313 . . . . . 141 297 857 439 2174 350 2032 566 1605 261 1247 1377 . . Seismic 5394 | 18 1407 1059 265 1439 893 313 . . . . . . . . . . . . . . . . . . . Jamming 11346 | . . . . . . . . . . . . 141 297 857 439 2174 350 2032 566 1605 261 1247 1377 . . Robot Analysis Total 2 | . 1 . 1 . . . . . . . . . . . . . . . . . . . . . . Derelict Logs Recovered 4 | . . 3 . 1 . . . . . . . . . . . . . . . . . . . . . Drone Launches . | . . . . . . . . . . . . . . . . . . . . . . . . . . Drone Recoveries . | . . . . . . . . . . . . . . . . . . . . . . . . . . Exploration | -11 -10 -10 -9 -9 -9 -8 -8 -8 -8 -8 -7 -7 -7 -7 -6 -6 -5 -5 -4 -4 -3 -3 -2 -2 -1 ------------- Run | Yrd Mat Min Mat Min Exi Min Mat Gar Mat Gar Fac Gar Fac Gar Fac Gar Fac Gar Fac Gar Res Gar Res Tes Acc Turns Passed 29365 | 258 1604 1059 3212 1895 893 691 2714 689 679 1224 188 1105 382 1422 439 2228 350 2358 599 1605 261 1737 1438 118 217 Spaces Moved 12981 | 129 730 431 1290 680 442 340 1067 336 294 487 93 466 181 504 202 846 180 1000 301 720 156 801 723 147 435 Core 300 | 7 . . . . . . . . . . . . . . . . . . . . . . 98 134 61 Treads 9978 | 122 730 431 1290 680 442 340 1067 336 294 487 93 466 181 504 202 846 180 1000 104 86 . 97 . . . Legs . | . . . . . . . . . . . . . . . . . . . . . . . . . . Wheels 2316 | . . . . . . . . . . . . . . . . . . . 197 634 156 704 625 . . Hover . | . . . . . . . . . . . . . . . . . . . . . . . . . . Flight 387 | . . . . . . . . . . . . . . . . . . . . . . . . 13 374 Fastest Speed 30 | 50 160 160 200 200 200 200 200 192 192 185 193 193 201 201 170 153 153 153 150 160 160 160 50 30 30 Average Speed 186 | 154 172 239 212 200 200 200 200 193 226 208 193 195 201 209 207 185 153 184 180 170 160 181 167 58 34 Slowest Speed 340 | 160 240 240 240 200 200 200 200 200 232 225 193 201 201 210 210 210 153 245 250 330 160 250 340 100 85 Overloaded Moves . | . . . . . . . . . . . . . . . . . . . . . . . . . . Propulsion Burnouts . | . . . . . . . . . . . . . . . . . . . . . . . . . . Robots Hopped 14 | . . . . . . . . . . . . . . . . . . . . . . . . . 14 Potential Cave-ins 2 | . . . . . . . . . . . . . . . . . . . . . . . 2 . . Cave-ins Triggered . | . . . . . . . . . . . . . . . . . . . . . . . . . . Exploration Rate (%) 52 | 5 98 93 98 98 78 85 90 55 31 68 5 62 6 56 5 73 3 96 14 87 9 80 27 31 12 Regions Visited 25 Branch Regions 5 Pre-discovered Areas 4 | . . 2 . 1 1 . . . . . . . . . . . . . . . . . . . . Known Exits Taken 9 | . . . 1 . . . 1 . 1 . 1 . 1 . 1 . 1 . 1 . 1 . . . . Unknown Exits Taken 8 | 1 1 1 . 1 1 1 . . . . . . . . . . . . . . . . 1 1 . Scrap Searched 4 | . . 1 . 2 . 1 . . . . . . . . . . . . . . . . . . . Spaces Dug 229 | . . . . 40 . 18 2 . . 17 . 48 . 23 . . 2 26 4 3 1 3 35 . 7 Terrain Destroyed 812 | . 12 . 11 40 . 35 76 . . 28 . 69 . 29 . 4 4 188 6 12 1 28 249 . 20 Melee . | . . . . . . . . . . . . . . . . . . . . . . . . . . Projectile 97 | . . . . . . . 6 . . . . 1 . . . 2 4 10 6 7 1 19 21 . 20 AOE 715 | . 12 . 11 40 . 35 70 . . 28 . 68 . 29 . 2 . 178 . 5 . 9 228 . . Terrain Rammed . | . . . . . . . . . . . . . . . . . . . . . . . . . . Walls Destroyed . | . . . . . . . . . . . . . . . . . . . . . . . . . . Machines Disabled . | . . . . . . . . . . . . . . . . . . . . . . . . . . Actions | -11 -10 -10 -9 -9 -9 -8 -8 -8 -8 -8 -7 -7 -7 -7 -6 -6 -5 -5 -4 -4 -3 -3 -2 -2 -1 --------- Run | Yrd Mat Min Mat Min Exi Min Mat Gar Mat Gar Fac Gar Fac Gar Fac Gar Fac Gar Fac Gar Res Gar Res Tes Acc Total 16814 | 156 1028 443 1593 1193 449 346 1462 375 303 640 101 606 191 733 219 1380 240 1351 341 1033 165 967 853 177 469 Wait 1983 | . 214 1 142 490 . 1 215 . . 80 . 52 . 96 1 376 45 76 1 145 4 31 9 . 4 Move 12940 | 128 729 430 1289 679 441 339 1067 335 294 486 93 465 181 503 202 845 180 999 301 719 156 800 722 146 411 Hop 10 | . . . . . . . . . . . . . . . . . . . . . . . . . 10 Pick Up 164 | 5 25 2 19 1 1 . 15 9 1 1 3 7 . 5 2 12 . 18 3 12 1 14 5 2 1 Fast Attach 85 | 7 1 . 6 2 . . 6 1 1 . . 2 1 6 1 7 1 9 6 6 . 6 11 4 1 Attach 78 | . 1 1 5 . . . 2 . . . 2 6 . 3 2 4 1 4 4 8 1 9 20 2 3 Detach 32 | . 1 . 3 . . . . . . . . 3 . 1 1 2 . 1 2 3 . 5 5 3 2 Swap 224 | . 10 . 12 3 2 . 30 3 2 15 1 18 4 18 2 28 6 36 2 17 1 4 9 1 . Drop 171 | . 14 1 23 3 1 . 18 10 2 1 1 6 1 10 2 16 . 25 4 15 . 6 8 3 1 Fire 881 | 16 27 6 78 13 . 4 90 5 1 38 1 46 3 87 6 85 7 128 18 56 2 80 63 1 20 Melee 14 | . . . . . 4 . . 9 1 . . . . . . . . . . . . . . . . Ram 2 | . . . . . . . . . . . . . . . . . . . . . . . 1 . 1 Kick . | . . . . . . . . . . . . . . . . . . . . . . . . . . Crush 40 | . 6 2 16 2 . 2 8 . 1 . . 1 1 . . 1 . . . . . . . . . Escape Stasis 92 | . . . . . . . . . . 4 . . . 4 . 4 . 2 . 36 . 12 . 15 15 Rewire 72 | . . . . . . . . 3 . . . . . . . . . 53 . 16 . . . . . Trap 26 | . . . . . . . 11 . . 15 . . . . . . . . . . . . . . . Miscellaneous . | . . . . . . . . . . . . . . . . . . . . . . . . . . Route ------- -11/Scrapyard -10/Materials (discovered 5 exits: *Mat x3 / [*Min x2]) -10/Mines (discovered 3 exits: *Mat x2 / [*Sub]) -9/Materials (discovered 7 exits: *Mat x3 / *Min x2 / *Sto x2) -9/Mines (discovered 4 exits: *Mat x2 / *Exi / [*Zio]) -9/Exiles -8/Mines (discovered 2 exits: *Mat x2) -8/Materials (discovered 4 exits: *Fac x3 / Gar) -8/Garrison (discovered 3 exits: *Mat x3) -8/Materials (discovered 2 exits: *Fac / Gar) -8/Garrison (discovered 2 exits: *Fac x2) -7/Factory -7/Garrison (discovered 4 exits: *Fac x4) -7/Factory (discovered 2 exits: [*Low] / Gar) -7/Garrison (discovered 2 exits: *Fac x2) -6/Factory -6/Garrison (discovered 3 exits: *Fac x3) -5/Factory -5/Garrison (discovered 3 exits: *Fac x3) -4/Factory (discovered 2 exits: *Res / Gar) -4/Garrison (discovered 3 exits: *Res x3) -3/Research -3/Garrison (discovered 2 exits: *Res x2) -2/Research -2/Testing -1/Access History --------- Turn | Location | Event 27 | -11/Scrapyard | Discovered new exit (range 15) 259 | -11/Scrapyard | Entered Materials 300 | -10/Materials | Build established: Mutant 441 | -10/Materials | Discovered new exit (range 15) 674 | -10/Materials | Discovered new exit (range 16) 759 | -10/Materials | Derelicts attacked the area 1002 | -10/Materials | Discovered new exit (range 12) 1240 | -10/Materials | Discovered new exit (range 12) 1524 | -10/Materials | Discovered new exit (range 16) 1863 | -10/Materials | Entered Mines 1933 | -10/Mines | Found DCF Scrap (16 items) 2250 | -10/Mines | Learned location of Zion (-7) 2629 | -10/Mines | Discovered new exit (range 10) 2689 | -10/Mines | Learned Materials stockpile data 2727 | -10/Mines | Discovered new exit (range 8) 2783 | -10/Mines | Learned location of Storage (-9) 2799 | -10/Mines | Discovered new exit (range 5) 2922 | -10/Mines | Entered Materials 2922 | -9/Materials | Evolved 2 slots: Utility x2 3175 | -9/Materials | Discovered new exit (range 14) 3247 | -9/Materials | Discovered new exit (range 12) 3456 | -9/Materials | Repaired Imp. Treads 3779 | -9/Materials | Discovered new exit (range 13) 4043 | -9/Materials | Discovered new exit (range 4) 4246 | -9/Materials | Discovered new exit (range 15) 4489 | -9/Materials | Repaired Imp. Treads+ 4634 | -9/Materials | Identified exit to Mines 4634 | -9/Materials | Identified exit to Storage 5639 | -9/Materials | Discovered new exit (range 16) 6134 | -9/Materials | Entered Mines 6147 | -9/Mines | Assembled infested the area 6858 | -9/Mines | Received a Rocket Launcher from a helpful Derelict 6892 | -9/Mines | Found the Drone Emporium 6902 | -9/Mines | Found Prototype Device 6902 | -9/Mines | Identified Splice Drone Bay 6937 | -9/Mines | Deemed a non-threat by the Exiles lab entrance 7121 | -9/Mines | Found a hidden stash of uninstalled traps 7231 | -9/Mines | Discovered new exit (range 10) 7328 | -9/Mines | A Derelict revealed a hidden shortcut to a safe place 7705 | -9/Mines | Discovered new exit (range 5) 8021 | -9/Mines | Discovered new exit (range 5) 8029 | -9/Mines | Entered Exiles 8077 | -9/Exiles | Met 8R-AWN 8111 | -9/Exiles | Met EX-HEX 8191 | -9/Exiles | Met EX-DEC 8285 | -9/Exiles | Visited The Gauntlet 8567 | -9/Exiles | Met EX-BIN 8603 | -9/Exiles | Aligned with FarCom system 8605 | -9/Exiles | Given EX-Vault access code 8651 | -9/Exiles | Opened EX-Vault 8665 | -9/Exiles | Found 0b10 Alert Chip 8706 | -9/Exiles | Warned to stay clear of 0b10 Research branches 8898 | -9/Exiles | Discovered new exit (range 11) 8922 | -9/Exiles | Left Exiles lab with 0b10 Alert Chip 8922 | -9/Exiles | Entered Mines 9533 | -8/Mines | Discovered new exit (range 9) 9603 | -8/Mines | Discovered new exit (range 5) 9613 | -8/Mines | Entered Materials 9613 | -8/Materials | Evolved 2 slots: Utility x2 10167 | -8/Materials | Discovered new exit (range 4) 11241 | -8/Materials | Discovered new exit (range 5) 11787 | -8/Materials | Discovered new exit (range 15) 12027 | -8/Materials | Repaired Hrd. Medium Armor Plating 12265 | -8/Materials | Central database locked down 12327 | -8/Materials | Identified exit to Garrison 12327 | -8/Materials | Entered Garrison 12327 | -8/Garrison | Discovered recently destroyed garrison 12665 | -8/Garrison | Build established: Commander-Mutant 12740 | -8/Garrison | Discovered new exit (range 77) 12740 | -8/Garrison | Discovered new exit (range 71) 12740 | -8/Garrison | Discovered new exit (range 37) 12787 | -8/Garrison | Garrison Relay disabled 12936 | -8/Garrison | Installed Relay Interface Framework 12948 | -8/Garrison | Garrison Relay disabled 13016 | -8/Garrison | Entered Materials 13016 | -8/Materials | Accompanied by 7 allies 13488 | -8/Materials | Discovered new exit (range 5) 13695 | -8/Materials | Identified exit to Garrison 13695 | -8/Materials | Entered Garrison 13695 | -8/Garrison | Accompanied by 5 allies 13763 | -8/Garrison | Triggered checkpoint 13783 | -8/Garrison | Expanded RIF knowledge: Alert ID Control 13881 | -8/Garrison | Triggered checkpoint 13963 | -8/Garrison | Lost 5 allies 14119 | -8/Garrison | Discovered new exit (range 8) 14176 | -8/Garrison | Build established: Mutant 14221 | -8/Garrison | Triggered checkpoint 14437 | -8/Garrison | Expanded RIF knowledge: Zone Cloak 14475 | -8/Garrison | Discovered new exit (range 10) 14521 | -8/Garrison | Triggered checkpoint 14555 | -8/Garrison | Garrison Relay disabled 14919 | -8/Garrison | Entered Factory 14919 | -7/Factory | Evolved 2 slots: Propulsion x1, Utility x1 15107 | -7/Factory | Identified exit to Garrison 15107 | -7/Factory | Entered Garrison 15207 | -7/Garrison | Triggered checkpoint 15223 | -7/Garrison | Discovered new exit (range 5) 15320 | -7/Garrison | Triggered checkpoint 15327 | -7/Garrison | Triggered checkpoint 15504 | -7/Garrison | Discovered new exit (range 15) 15535 | -7/Garrison | Discovered new exit (range 7) 15535 | -7/Garrison | Discovered new exit (range 40) 15535 | -7/Garrison | Discovered new exit (range 74) 15535 | -7/Garrison | Discovered new exit (range 49) 15673 | -7/Garrison | Triggered checkpoint 15725 | -7/Garrison | Destroyed 8 combat bots 15847 | -7/Garrison | Expanded RIF knowledge: Watcher Feeds 15865 | -7/Garrison | Triggered checkpoint 16035 | -7/Garrison | Garrison Relay disabled 16212 | -7/Garrison | Entered Factory 16212 | -7/Factory | Accompanied by 1 ally 16337 | -7/Factory | Discovered new exit (range 13) 16594 | -7/Factory | Identified exit to Garrison 16594 | -7/Factory | Entered Garrison 16842 | -7/Garrison | Expanded RIF knowledge: Command Fork 17096 | -7/Garrison | Triggered checkpoint 17149 | -7/Garrison | Triggered checkpoint 17339 | -7/Garrison | Discovered new exit (range 8) 17362 | -7/Garrison | Triggered checkpoint 17399 | -7/Garrison | Garrison Relay disabled 17555 | -7/Garrison | Expanded RIF knowledge: Signal Jamming 17778 | -7/Garrison | Triggered checkpoint 17833 | -7/Garrison | Triggered checkpoint 17947 | -7/Garrison | Discovered new exit (range 10) 18016 | -7/Garrison | Entered Factory 18016 | -6/Factory | Evolved 2 slots: Propulsion x1, Utility x1 18455 | -6/Factory | Identified exit to Garrison 18455 | -6/Factory | Entered Garrison 18455 | -6/Garrison | Accompanied by 2 allies 18847 | -6/Garrison | Triggered checkpoint 19040 | -6/Garrison | Triggered checkpoint 19457 | -6/Garrison | Triggered checkpoint 19794 | -6/Garrison | Discovered new exit (range 10) 19885 | -6/Garrison | Expanded RIF knowledge: Autooverride 20114 | -6/Garrison | Triggered checkpoint 20166 | -6/Garrison | Garrison Relay disabled 20249 | -6/Garrison | Triggered checkpoint 20340 | -6/Garrison | Discovered new exit (range 5) 20368 | -6/Garrison | Expanded RIF knowledge: Autoassimilate 20592 | -6/Garrison | Garrison Relay disabled 20597 | -6/Garrison | Triggered checkpoint 20666 | -6/Garrison | Discovered new exit (range 11) 20683 | -6/Garrison | Entered Factory 20683 | -5/Factory | Accompanied by 1 ally 20683 | -5/Factory | Evolved 2 slots: Power x1, Utility x1 20882 | -5/Factory | Build established: Botlord-Mutant 20983 | -5/Factory | First assault squad dispatched 21033 | -5/Factory | Identified exit to Garrison 21033 | -5/Factory | Entered Garrison 21067 | -5/Garrison | Spotted B-86 Titan 21076 | -5/Garrison | Spotted B-86 Titan 21114 | -5/Garrison | Destroyed B-86 Titan 21187 | -5/Garrison | Destroyed B-86 Titan 21267 | -5/Garrison | Found Hvy. Reflective Plating 21279 | -5/Garrison | Rewired B-86 Titan 21339 | -5/Garrison | Rewired B-75 Beast 21447 | -5/Garrison | Triggered checkpoint 21551 | -5/Garrison | Allies destroyed Beast 6a 21556 | -5/Garrison | Garrison Relay disabled 21576 | -5/Garrison | Build established: Bothacker-Mutant 21944 | -5/Garrison | Spotted B-75 Beast 21956 | -5/Garrison | Destroyed B-75 Beast 21980 | -5/Garrison | Triggered checkpoint 22080 | -5/Garrison | Garrison Relay disabled 22096 | -5/Garrison | Build established: Botlord-Mutant 22119 | -5/Garrison | Discovered new exit (range 10) 22251 | -5/Garrison | Phase Generator disabled 22275 | -5/Garrison | Lost 4 allies 22289 | -5/Garrison | Destroyed 12 combat bots 22505 | -5/Garrison | Triggered checkpoint 22509 | -5/Garrison | Garrison Relay disabled 22527 | -5/Garrison | Triggered checkpoint 22527 | -5/Garrison | Garrison Relay disabled 22679 | -5/Garrison | Triggered checkpoint 22686 | -5/Garrison | Triggered checkpoint 22731 | -5/Garrison | Lost 3 allies 22764 | -5/Garrison | Expanded RIF knowledge: Robot Detection 22869 | -5/Garrison | Discovered new exit (range 3) 23023 | -5/Garrison | Discovered new exit (range 10) 23056 | -5/Garrison | Discovered new exit (range 6) 23056 | -5/Garrison | Discovered new exit (range 50) 23056 | -5/Garrison | Discovered new exit (range 49) 23117 | -5/Garrison | Lost 3 allies 23212 | -5/Garrison | Spotted Executioner 23228 | -5/Garrison | Destroyed Executioner 23248 | -5/Garrison | Rewired Executioner 23253 | -5/Garrison | Rewired Executioner 23262 | -5/Garrison | Found Exp. Core Analyzer 23391 | -5/Garrison | Entered Factory 23391 | -4/Factory | Accompanied by 12 allies 23391 | -4/Factory | Evolved 2 slots: Utility x1, Weapon x1 23641 | -4/Factory | First assault squad dispatched 23679 | -4/Factory | Discovered new exit (range 28) 23704 | -4/Factory | Build established: Botlord-Tank 23768 | -4/Factory | Lost 6 allies 23820 | -4/Factory | Identified exit to Research 23988 | -4/Factory | Lost 11 allies 23990 | -4/Factory | Identified exit to Garrison 23990 | -4/Factory | Entered Garrison 24071 | -4/Garrison | Spotted B-86 Titan 24148 | -4/Garrison | Destroyed B-86 Titan 24226 | -4/Garrison | Triggered checkpoint 24238 | -4/Garrison | Triggered checkpoint 24351 | -4/Garrison | Triggered checkpoint 24527 | -4/Garrison | Found Gamma Bomb Array 24533 | -4/Garrison | Found Gamma Bomb Array 24556 | -4/Garrison | Discovered exit to Research (range 11) 24578 | -4/Garrison | Triggered checkpoint 24615 | -4/Garrison | Garrison Relay disabled 24743 | -4/Garrison | Garrison Relay disabled 24932 | -4/Garrison | Discovered exit to Research (range 9) 25002 | -4/Garrison | Rewired B-75 Beast 25171 | -4/Garrison | Garrison Relay disabled 25410 | -4/Garrison | Discovered exit to Research (range 11) 25428 | -4/Garrison | Expanded RIF knowledge: Autooverride 25456 | -4/Garrison | Found embedded Infiltrators 25458 | -4/Garrison | Triggered checkpoint 25496 | -4/Garrison | Garrison Relay disabled 25595 | -4/Garrison | Entered Research 25595 | -3/Research | Accompanied by 13 allies 25595 | -3/Research | Evolved 2 slots: Utility x2 25845 | -3/Research | First assault squad dispatched 25852 | -3/Research | Identified exit to Garrison 25856 | -3/Research | Entered Garrison 25856 | -3/Garrison | Accompanied by 10 allies 25945 | -3/Garrison | Expanded RIF knowledge: Program Shield 26072 | -3/Garrison | Lost 5 allies 26129 | -3/Garrison | Garrison Relay disabled 26334 | -3/Garrison | Spotted B-86 Titan 26346 | -3/Garrison | Triggered checkpoint 26357 | -3/Garrison | Destroyed B-86 Titan 26360 | -3/Garrison | Triggered checkpoint 26368 | -3/Garrison | Triggered checkpoint 26369 | -3/Garrison | Triggered checkpoint 26400 | -3/Garrison | Lost 3 allies 26411 | -3/Garrison | Destroyed 15 combat bots 26445 | -3/Garrison | Lost 6 parts (1p4u1w) 26692 | -3/Garrison | Triggered checkpoint 26783 | -3/Garrison | Garrison Relay disabled 26830 | -3/Garrison | Rescued a captive Derelict 26832 | -3/Garrison | Rescued a captive Derelict 26994 | -3/Garrison | Discovered new exit (range 11) 27095 | -3/Garrison | Expanded RIF knowledge: Coupler Efficiency 27264 | -3/Garrison | Spotted B-86 Titan 27272 | -3/Garrison | Spotted B-86 Titan 27319 | -3/Garrison | Lost 4 allies 27401 | -3/Garrison | Garrison Relay disabled 27456 | -3/Garrison | Triggered checkpoint 27483 | -3/Garrison | Discovered new exit (range 15) 27582 | -3/Garrison | Triggered checkpoint 27593 | -3/Garrison | Entered Research 27593 | -2/Research | Evolved 2 slots: Utility x2 27843 | -2/Research | First assault squad dispatched 28368 | -2/Research | Found Prototype Processor 28623 | -2/Research | Identified Exp. Target Analyzer 28628 | -2/Research | System corruption reached 10% 28701 | -2/Research | Lost 12 parts (1p2n6u3w) 28815 | -2/Research | Destroyed 7 combat bots 28966 | -2/Research | Lost 4 allies 29024 | -2/Research | Core integrity fell below 50% 29027 | -2/Research | Discovered new exit (range 9) 29031 | -2/Research | Entered Testing 29032 | -2/Testing | Maximum security lockdown engaged 29053 | -2/Testing | Lost 7 parts (1p4n2u) 29070 | -2/Testing | Found Prototype Energy Cannon 29074 | -2/Testing | Identified Disintegrator 29096 | -2/Testing | Build established: Botlord-Mutant 29130 | -2/Testing | Discovered new exit (range 10) 29149 | -2/Testing | Entered Access 29149 | -1/Access | Accompanied by 3 allies 29149 | -1/Access | Evolved 2 slots: Propulsion x2 29317 | -1/Access | Core integrity fell below 50% 29359 | -1/Access | Core integrity fell below 20% 29366 | -1/Access | Destroyed by H-88 Terminator with KE Penetrator Last Messages --------------- Backup Propulsion III x2 Backup Laser III x2 [Achievement: Fitting Room] 29351_ Dropped Backup Power III. 29354_ Backup Propulsion III destroyed. 29356_ M-28 Smith repairs G-73 Enforcer. 29357_ Backup Power III destroyed. 29357_ Slug penetrates Wall. 29358_ Penetrated by Slug. 29360_ M-28 Smith repairs G-73 Enforcer. 29360_ Slug penetrates Wall. 29360_ Slug penetrates G-73 Enforcer. 29363_ Slammed into M-28 Smith. 29363_ Exp. Core Analyzer broken. 29363_ Destabilizing: Short circuit. 29364_ Penetrated by Slug. 29364_ M-28 Smith destroyed. 29366_ Penetrated by Slug. 29366_ Wave Collapse Detector explodes. 29366_ Penetrated by Slug. Map ----- +----------------------------------------------------+ | # # # #????????# #????# # #???? | | # #"" / #????????### ########+# = #???? | | # #"" # #????###???# # """ # #???? | | # #"Y # #??? ????# # ""R" ##########???? | | # #"" # #??? ????# / ""*" #????????????? | | # #"" # #?? "" ???# # #????????????? | | # # # #?? "" ???# # ! #????????????? | | # # #? """"""??# #! #????????????? | | # # #? """""" # # =#????????????? | | # # # #* "" [# ##########????????????? | | # / # # "" # #???###??#????????????? | | # # # + #s #??? " ? #????????????? | | #% # # # #ss#?? """ #????????????? | | # ######## # # s#??""" =#????????????? | | ####### ############ s#? " #????????????? | | #? #????????????? | | " *=# #????????????? | | #######+#############!%# #????????????? | | ### #????? ????????????#|!+ #????????????? | | ??# #????? ????????????#=g# ] #????????????? | | ??# #???? " ????????????#%g##"#######????????????? | | ??# #????"""??#########?#g #? #????????????? | | ??# #????"" ??# " ?# #? #????????????? | | ??# #??? ? ??# #h # #????????????? | | ??# #????? ??# # # ! #????????????? | | ??# #????? ???# /@h/ #????????????? | | ### #????? ???#! # # " #????????????? | | #?????????# # # """ #????????????? | | #?????????# ?# #? """ #????????????? | | #?????????# ?# #? " #????????????? | | #?????????########??# #??#######????????????? | | #???????????????????#A #?????????????????????? | | #???????????????????# #?????????????????????? | | #???????????????????# #?????????????????????? | | #####???????????????????# #?????????????????????? | | ????????????????????????# #?????????????????????? | | ????????????????????????# #?????????????????????? | | ????????????????????????# #######"??????????????? | | ????????????????????????# """T""""??????????????? | | ????????????????????????# """ """"??????????????? | | ????????????????????????# "??????????????? | | ????????????????????????# w "??????????????? | | ????????????????????????# == "??????????????? | | ????????????????????????#=*%! "??????????????? | | ????????????????????????# * "??????????????? | | ????????????????????????# "??????????????? | | ????????????????????????# "??????????????? | | ????????????????????????# "??????????????? | | ????????????????????????# #######"#######????##?? | | ????????????????????????# #?##### # #???# ### | +----------------------------------------------------+ Best States ------------- Heat Dissipation 118 Coolant Potential 100 Energy Generation 47 Energy Capacity 575 Matter Stores 500 Matter Capacity 550 Sight Range 16 Terrain Scan Density 10 Jamming Range 14 Additional Mass Support 12 EM Shielding 2 Armor Coverage 1650 Resistance: KI 20 Propulsion Shielding 33 Evasion (%) 64 Target Analysis 10 Core Analysis 8 Recoil Reduction 4 Offensive Hacking 12 Defensive Hacking 10 Relay Coupler Types 4 Relay Coupler Value 291 Item Schematics ----------------- None Robot Schematics ------------------ None Fabricated ------------ Nothing Repaired ---------- Imp. Treads | 17% | -9/Materials Imp. Treads | 41% | -9/Materials Hrd. Medium Armor Plating | 13% | -8/Materials Studied --------- Imp. Treads | -9/Materials | Hacked Imp. Light Cannon | -9/Materials | Hacked Rocket Launcher | -8/Materials | Hacked Flak Cannon | -8/Materials | Hacked Arm. Treads | -8/Materials | Hacked Adv. Treads | -8/Materials | Hacked EM Pulse Cannon | -8/Materials | Hacked Assault Cannon | -8/Materials | Hacked Centrium Wheel | -4/Factory | Hacked Hvy. Mass Driver | -4/Factory | Hacked Rnf. Antimatter Reactor | -4/Factory | Hacked Alien Tech Used ----------------- None Achievements -------------- Fitting Room For Science! Hackathon My Business Is Booming Physics Hates This One Trick Challenges ------------ None Game ------ Seed RapidAutogunDiverter Manual? 0 Play Time 03:45:07 Cumulative 616.0 hours Start 2025.12.20 @ 11:54:57 End 2025.12.21 @ 13:45:47 Sessions 5 Manual Loads 0 Difficulty Rogue Special Mode None Game No. 258 Rogue 258 Adventurer 0 Explorer 0 Win Type - Total 29 Types 9/4/9/2/1/0/1/1/1/1 Lore% 93 Gallery% 87 Achievement% 62 Wizard Run 0 Options --------- Layout 0 ASCII 0 Keyboard 0 Movement Arrows Keybinds 0 Fullscreen 2 Font 18/SmallcapsGlow Map View 76x50 Zoom Use 0% Tactical HUD 1 Map Filters NONE Filters NONE Steam 1 RUN: 9807ef68-e6c1-4548-a4cb-ff25d3a5334f